Workbook

Sheet Sheet1
G1: y | H1: # Combinations | I1: P(Y=y when hypothesis is true) | J1: p(Y<=y when hypothesis is true) = p(erroneously rejecting a correct hypothesis) = alpha | K1: p(Y=y when true putting percentage is the alternative) | L1: p(Y>y when true putting percentage is the alternative) = p(erroneously accepting an incorrect hypothesis) = beta | M1: alpha plus beta (minimum value in this column provides us with the best test)
A2: # putts | B2: True putting % hypothesis | C2: alternative | D2: Best Test | E2: Best Test Beta | F2: Best Test Alpha | G2: 0 | H2: =IF(ISERROR(COMBIN(A$3,A$3-ROW()+2)),"",COMBIN(A$3,A$3-ROW()+2)) -> 1 | I2: =IF(ISERROR(H2*B$3^G2*(1-B$3)^(A$3-G2))=TRUE,"",H2*B$3^G2*(1-B$3)^(A$3-G2)) -> 8.881784197e-66 | J2: =SUM(I$2:I2) -> 8.881784197e-66 | K2: =IF(ISERROR(H2*(C$3)^G2*(1-C$3)^(A$3-G2))=TRUE,"",H2*(C$3)^G2*(1-C$3)^(A$3-G2)) -> 6.376215002e-42 | L2: =SUM(K3:K$502) -> 1 | M2: =L2+J2 -> 1
A3: 50 | B3: 0.95 | C3: 0.85 | D3: =INDEX(G:G,MATCH(MIN(M:M),M:M,0),1) -> 45 | E3: =VLOOKUP(D3,G:L,6,FALSE) -> 11.2% | F3: =VLOOKUP(D3,G:J,4,FALSE) -> 10.4% | G3: 1 | H3: =IF(ISERROR(COMBIN(A$3,A$3-ROW()+2)),"",COMBIN(A$3,A$3-ROW()+2)) -> 50 | I3: =IF(ISERROR(H3*B$3^G3*(1-B$3)^(A$3-G3))=TRUE,"",H3*B$3^G3*(1-B$3)^(A$3-G3)) -> 8.437694987e-63 | J3: =SUM(I$2:I3) -> 8.446576771e-63 | K3: =IF(ISERROR(H3*(C$3)^G3*(1-C$3)^(A$3-G3))=TRUE,"",H3*(C$3)^G3*(1-C$3)^(A$3-G3)) -> 1.806594251e-39 | L3: =SUM(K4:K$502) -> 1 | M3: =L3+J3 -> 1
G4: 2 | H4: 1225 | I4: 3.927747017e-60 | J4: =SUM(I$2:I4) -> 3.936193593e-60 | K4: 2.508155018e-37 | L4: =SUM(K5:K$502) -> 1 | M4: 1
G5: 3 | H5: 19600 | I5: 1.194035093e-57 | J5: =SUM(I$2:I5) -> 1.197971287e-57 | K5: 2.27406055e-35 | L5: =SUM(K6:K$502) -> 1 | M5: 1
G6: 4 | H6: 230300 | I6: 2.665683345e-55 | J6: =SUM(I$2:I6) -> 2.677663058e-55 | K6: 1.514145316e-33 | L6: =SUM(K7:K$502) -> 1 | M6: 1
G7: 5 | H7: 2118760 | I7: 4.659614487e-53 | J7: =SUM(I$2:I7) -> 4.686391118e-53 | K7: =IF(ISERROR(H7*(C$3)^G7*(1-C$3)^(A$3-G7))=TRUE,"",H7*(C$3)^G7*(1-C$3)^(A$3-G7)) -> 7.893744247e-32 | L7: =SUM(K8:K$502) -> 1 | M7: 1
G8: 6 | H8: 15890700 | I8: 6.639950644e-51 | J8: =SUM(I$2:I8) -> 6.686814556e-51 | K8: 3.354841305e-30 | L8: =SUM(K9:K$502) -> 1 | M8: 1
G9: 7 | H9: 99884400 | I9: 7.929998198e-49 | J9: =SUM(I$2:I9) -> 7.996866344e-49 | K9: 1.194962522e-28 | L9: =SUM(K10:K$502) -> 1 | M9: 1
G10: 8 | H10: 536878650 | I10: 8.09851066e-47 | J10: =SUM(I$2:I10) -> 8.178479323e-47 | K10: 3.639656682e-27 | L10: =SUM(K11:K$502) -> 1 | M10: 1
G11: 9 | H11: 2505433700 | I11: 7.180679452e-45 | J11: =SUM(I$2:I11) -> 7.262464245e-45 | K11: 9.624869891e-26 | L11: =SUM(K12:K$502) -> 1 | M11: 1
G12: 10 | H12: 10272278170 | I12: 5.593749293e-43 | J12: =SUM(I$2:I12) -> 5.666373935e-43 | K12: 2.236178105e-24 | L12: =SUM(K13:K$502) -> 1 | M12: 1
G13: 11 | H13: 3.73537388e+10 | I13: 3.864772239e-41 | J13: =SUM(I$2:I13) -> 3.921435978e-41 | K13: 4.607882155e-23 | L13: =SUM(K14:K$502) -> 1 | M13: 1
G14: 12 | H14: 121399651100 | I14: 2.386496857e-39 | J14: =SUM(I$2:I14) -> 2.425711217e-39 | K14: 8.486182969e-22 | L14: =SUM(K15:K$502) -> 1 | M14: 1
G15: 13 | H15: 3.548605186e+11 | I15: 1.325423639e-37 | J15: =SUM(I$2:I15) -> 1.349680751e-37 | K15: 1.405660051e-20 | L15: =SUM(K16:K$502) -> 1 | M15: 1
G16: 14 | H16: 937845656300 | I16: 6.655520132e-36 | J16: =SUM(I$2:I16) -> 6.790488207e-36 | K16: 2.105143267e-19 | L16: =SUM(K17:K$502) -> 1 | M16: 1
G17: 15 | H17: 2.250829575e+12 | I17: 3.03491718e-34 | J17: =SUM(I$2:I17) -> 3.102822062e-34 | K17: 2.862994842e-18 | L17: =SUM(K18:K$502) -> 1 | M17: 1
G18: 16 | H18: 4923689695575 | I18: 1.261387453e-32 | J18: =SUM(I$2:I18) -> 1.292415674e-32 | K18: 3.54892069e-17 | L18: =SUM(K19:K$502) -> 1 | M18: 1
G19: 17 | H19: 9847379391150 | I19: 4.793272321e-31 | J19: =SUM(I$2:I19) -> 4.922513889e-31 | K19: 4.022110115e-16 | L19: =SUM(K20:K$502) -> 1 | M19: 1
G20: 18 | H20: 1.805352888e+13 | I20: 1.669656525e-29 | J20: =SUM(I$2:I20) -> 1.718881664e-29 | K20: 4.178525509e-15 | L20: =SUM(K21:K$502) -> 1 | M20: 1
G21: 19 | H21: 3.040594338e+13 | I21: 5.342900881e-28 | J21: =SUM(I$2:I21) -> 5.514789047e-28 | K21: 3.9879261e-14 | L21: =SUM(K22:K$502) -> 1 | M21: 1
G22: 20 | H22: 47129212243960 | I22: 1.573484309e-26 | J22: =SUM(I$2:I22) -> 1.6286322e-26 | K22: 3.502728424e-13 | L22: =SUM(K23:K$502) -> 1 | M22: 1
G23: 21 | H23: 67327446062800 | I23: 4.270885983e-25 | J23: =SUM(I$2:I23) -> 4.433749203e-25 | K23: 2.835542058e-12 | L23: =SUM(K24:K$502) -> 1 | M23: 1
G24: 22 | H24: 8.874981526e+13 | I24: 1.069662807e-23 | J24: =SUM(I$2:I24) -> 1.114000299e-23 | K24: 2.118063992e-11 | L24: =SUM(K25:K$502) -> 1 | M24: 1
G25: 23 | H25: 1.080432534e+14 | I25: 2.474176581e-22 | J25: =SUM(I$2:I25) -> 2.585576611e-22 | K25: 1.461157188e-10 | L25: =SUM(K26:K$502) -> 0.9999999998 | M25: 0.9999999998
G26: 24 | H26: 1.2154866e+14 | I26: 5.288552441e-21 | J26: =SUM(I$2:I26) -> 5.547110102e-21 | K26: 9.314877076e-10 | L26: =SUM(K27:K$502) -> 0.9999999989 | M26: 0.9999999989
G27: 25 | H27: 1.264106064e+14 | I27: 1.045017962e-19 | J27: =SUM(I$2:I27) -> 1.100489063e-19 | K27: 5.489567557e-09 | L27: =SUM(K28:K$502) -> 0.9999999934 | M27: 0.9999999934
G28: 26 | H28: 1.2154866e+14 | I28: 1.909167431e-18 | J28: =SUM(I$2:I28) -> 2.019216338e-18 | K28: 2.991110528e-08 | L28: =SUM(K29:K$502) -> 0.9999999635 | M28: 0.9999999635
G29: 27 | H29: 1.080432534e+14 | I29: 3.224371662e-17 | J29: =SUM(I$2:I29) -> 3.426293296e-17 | K29: 1.506633451e-07 | L29: =SUM(K30:K$502) -> 0.9999998128 | M29: 0.9999998128
G30: 28 | H30: 8.874981526e+13 | I30: 5.032322915e-16 | J30: =SUM(I$2:I30) -> 5.374952244e-16 | K30: 7.013019992e-07 | L30: =SUM(K31:K$502) -> 0.9999991115 | M30: 0.9999991115
G31: 29 | H31: 67327446062800 | I31: 7.253486133e-15 | J31: =SUM(I$2:I31) -> 7.790981357e-15 | K31: 3.014792502e-06 | L31: =SUM(K32:K$502) -> 0.9999960967 | M31: 0.9999960967
G32: 30 | H32: 47129212243960 | I32: 9.647136556e-14 | J32: =SUM(I$2:I32) -> 1.042623469e-13 | K32: 1.195867693e-05 | L32: =SUM(K33:K$502) -> 0.9999841381 | M32: 0.9999841381
G33: 31 | H33: 3.040594338e+13 | I33: 1.182552223e-12 | J33: =SUM(I$2:I33) -> 1.28681457e-12 | K33: 4.371989414e-05 | L33: =SUM(K34:K$502) -> 0.9999404182 | M33: 0.9999404182
G34: 32 | H34: 1.805352888e+13 | I34: 1.334066727e-11 | J34: =SUM(I$2:I34) -> 1.462748184e-11 | K34: 0.0001470992272 | L34: =SUM(K35:K$502) -> 0.9997933189 | M34: 0.999793319
G35: 33 | H35: 9847379391150 | I35: 1.382578244e-10 | J35: =SUM(I$2:I35) -> 1.528853062e-10 | K35: 0.0004546703385 | L35: =SUM(K36:K$502) -> 0.9993386486 | M35: 0.9993386488
G36: 34 | H36: 4923689695575 | I36: 1.313449332e-09 | J36: =SUM(I$2:I36) -> 1.466334638e-09 | K36: 0.001288232626 | L36: =SUM(K37:K$502) -> 0.998050416 | M36: 0.9980504174
G37: 35 | H37: 2.250829575e+12 | I37: 1.140824562e-08 | J37: =SUM(I$2:I37) -> 1.287458026e-08 | K37: 0.003337135945 | L37: =SUM(K38:K$502) -> 0.99471328 | M37: 0.9947132929
G38: 36 | H38: 937845656300 | I38: 9.031527786e-08 | J38: =SUM(I$2:I38) -> 1.031898581e-07 | K38: 0.007879348758 | L38: =SUM(K39:K$502) -> 0.9868339313 | M38: 0.9868340345
G39: 37 | H39: 3.548605186e+11 | I39: 6.492936192e-07 | J39: =SUM(I$2:I39) -> 7.524834773e-07 | K39: 0.0168944595 | L39: =SUM(K40:K$502) -> 0.9699394718 | M39: 0.9699402243
G40: 38 | H40: 121399651100 | I40: 4.220408525e-06 | J40: =SUM(I$2:I40) -> 4.972892002e-06 | K40: 0.03275153991 | L40: =SUM(K41:K$502) -> 0.9371879319 | M40: 0.9371929048
G41: 39 | H41: 3.73537388e+10 | I41: 2.467315753e-05 | J41: =SUM(I$2:I41) -> 2.964604953e-05 | K41: 0.05710524907 | L41: =SUM(K42:K$502) -> 0.8800826828 | M41: 0.8801123288
G42: 40 | H42: 10272278170 | I42: 0.0001289172481 | J42: =SUM(I$2:I42) -> 0.0001585632976 | K42: 0.08898901313 | L42: =SUM(K43:K$502) -> 0.7910936697 | M42: 0.791252233
G43: 41 | H43: 2505433700 | I43: 0.0005974213936 | J43: =SUM(I$2:I43) -> 0.0007559846912 | K43: 0.122992945 | L43: =SUM(K44:K$502) -> 0.6681007247 | M43: 0.6688567094
G44: 42 | H44: 536878650 | I44: 0.002432358531 | J44: =SUM(I$2:I44) -> 0.003188343222 | K44: 0.149348576 | L44: =SUM(K45:K$502) -> 0.5187521486 | M44: 0.5219404919
G45: 43 | H45: 99884400 | I45: 0.008598104575 | J45: =SUM(I$2:I45) -> 0.0117864478 | K45: 0.1574527623 | L45: =SUM(K46:K$502) -> 0.3612993863 | M45: 0.3730858341
G46: 44 | H46: 15890700 | I46: 0.02598972519 | J46: =SUM(I$2:I46) -> 0.03777617299 | K46: 0.1419460509 | L46: =SUM(K47:K$502) -> 0.2193533354 | M46: 0.2571295084
G47: 45 | H47: 2118760 | I47: 0.06584063715 | J47: =SUM(I$2:I47) -> 0.1036168101 | K47: 0.1072481273 | L47: =SUM(K48:K$502) -> 0.1121052081 | M47: 0.2157220182
G48: 46 | H48: 230300 | I48: 0.1359752289 | J48: =SUM(I$2:I48) -> 0.239592039 | K48: 0.06605862916 | L48: =SUM(K49:K$502) -> 0.04604657889 | M48: 0.2856386179
G49: 47 | H49: 19600 | I49: 0.2198748382 | J49: =SUM(I$2:I49) -> 0.4594668773 | K49: 0.03185806229 | L49: =SUM(K50:K$502) -> 0.0141885166 | M49: 0.4736553939
G50: 48 | H50: 1225 | I50: 0.2611013704 | J50: =SUM(I$2:I50) -> 0.7205682477 | K50: 0.01128306373 | L50: =SUM(K51:K$502) -> 0.002905452873 | M50: 0.7234737006
G51: 49 | H51: 50 | I51: 0.202486777 | J51: =SUM(I$2:I51) -> 0.9230550247 | K51: 0.002609688209 | L51: =SUM(K52:K$502) -> 0.0002957646637 | M51: 0.9233507894
G52: 50 | H52: 1 | I52: 0.07694497528 | J52: =SUM(I$2:I52) -> 1 | K52: 0.0002957646637 | L52: =SUM(K53:K$502) -> 0 | M52: 1
G53: 51 | J53: =SUM(I$2:I53) -> 1 | L53: =SUM(K54:K$502) -> 0 | M53: 1
G54: 52 | J54: =SUM(I$2:I54) -> 1 | L54: =SUM(K55:K$502) -> 0 | M54: 1
G55: 53 | J55: =SUM(I$2:I55) -> 1 | L55: =SUM(K56:K$502) -> 0 | M55: 1
G56: 54 | J56: =SUM(I$2:I56) -> 1 | L56: =SUM(K57:K$502) -> 0 | M56: 1
G57: 55 | J57: =SUM(I$2:I57) -> 1 | L57: =SUM(K58:K$502) -> 0 | M57: 1
G58: 56 | J58: =SUM(I$2:I58) -> 1 | L58: =SUM(K59:K$502) -> 0 | M58: 1
G59: 57 | J59: =SUM(I$2:I59) -> 1 | L59: =SUM(K60:K$502) -> 0 | M59: 1
G60: 58 | J60: =SUM(I$2:I60) -> 1 | L60: =SUM(K61:K$502) -> 0 | M60: 1
G61: 59 | J61: =SUM(I$2:I61) -> 1 | L61: =SUM(K62:K$502) -> 0 | M61: 1
G62: 60 | J62: =SUM(I$2:I62) -> 1 | L62: =SUM(K63:K$502) -> 0 | M62: 1
G63: 61 | J63: =SUM(I$2:I63) -> 1 | L63: =SUM(K64:K$502) -> 0 | M63: 1
G64: 62 | J64: =SUM(I$2:I64) -> 1 | L64: =SUM(K65:K$502) -> 0 | M64: 1
G65: 63 | J65: =SUM(I$2:I65) -> 1 | L65: =SUM(K66:K$502) -> 0 | M65: 1
G66: 64 | J66: =SUM(I$2:I66) -> 1 | K66: =IF(ISERROR(H66*(C$3)^G66*(1-C$3)^(A$3-G66))=TRUE,"",H66*(C$3)^G66*(1-C$3)^(A$3-G66)) ->  | L66: =SUM(K67:K$502) -> 0 | M66: 1
G67: 65 | H67: =IF(ISERROR(COMBIN(A$3,A$3-ROW()+2)),"",COMBIN(A$3,A$3-ROW()+2)) ->  | I67: =IF(ISERROR(H67*B$3^G67*(1-B$3)^(A$3-G67))=TRUE,"",H67*B$3^G67*(1-B$3)^(A$3-G67)) ->  | J67: =SUM(I$2:I67) -> 1 | L67: =SUM(K68:K$502) -> 0 | M67: =L67+J67 -> 1
G68: 66 | J68: =SUM(I$2:I68) -> 1 | L68: =SUM(K69:K$502) -> 0 | M68: 1
G69: 67 | J69: =SUM(I$2:I69) -> 1 | L69: =SUM(K70:K$502) -> 0 | M69: 1
G70: 68 | J70: =SUM(I$2:I70) -> 1 | L70: =SUM(K71:K$502) -> 0 | M70: 1
G71: 69 | J71: =SUM(I$2:I71) -> 1 | L71: =SUM(K72:K$502) -> 0 | M71: 1
G72: 70 | J72: =SUM(I$2:I72) -> 1 | L72: =SUM(K73:K$502) -> 0 | M72: 1
G73: 71 | J73: =SUM(I$2:I73) -> 1 | L73: =SUM(K74:K$502) -> 0 | M73: 1
G74: 72 | J74: =SUM(I$2:I74) -> 1 | L74: =SUM(K75:K$502) -> 0 | M74: 1
G75: 73 | J75: =SUM(I$2:I75) -> 1 | L75: =SUM(K76:K$502) -> 0 | M75: 1
G76: 74 | J76: =SUM(I$2:I76) -> 1 | L76: =SUM(K77:K$502) -> 0 | M76: 1
G77: 75 | J77: =SUM(I$2:I77) -> 1 | L77: =SUM(K78:K$502) -> 0 | M77: 1
G78: 76 | J78: =SUM(I$2:I78) -> 1 | L78: =SUM(K79:K$502) -> 0 | M78: 1
G79: 77 | J79: =SUM(I$2:I79) -> 1 | L79: =SUM(K80:K$502) -> 0 | M79: 1
G80: 78 | J80: =SUM(I$2:I80) -> 1 | L80: =SUM(K81:K$502) -> 0 | M80: 1
G81: 79 | J81: =SUM(I$2:I81) -> 1 | L81: =SUM(K82:K$502) -> 0 | M81: 1
G82: 80 | J82: =SUM(I$2:I82) -> 1 | L82: =SUM(K83:K$502) -> 0 | M82: 1
G83: 81 | J83: =SUM(I$2:I83) -> 1 | L83: =SUM(K84:K$502) -> 0 | M83: 1
G84: 82 | J84: =SUM(I$2:I84) -> 1 | L84: =SUM(K85:K$502) -> 0 | M84: 1
G85: 83 | J85: =SUM(I$2:I85) -> 1 | L85: =SUM(K86:K$502) -> 0 | M85: 1
G86: 84 | J86: =SUM(I$2:I86) -> 1 | L86: =SUM(K87:K$502) -> 0 | M86: 1
G87: 85 | J87: =SUM(I$2:I87) -> 1 | L87: =SUM(K88:K$502) -> 0 | M87: 1
G88: 86 | J88: =SUM(I$2:I88) -> 1 | L88: =SUM(K89:K$502) -> 0 | M88: 1
G89: 87 | J89: =SUM(I$2:I89) -> 1 | L89: =SUM(K90:K$502) -> 0 | M89: 1
G90: 88 | J90: =SUM(I$2:I90) -> 1 | L90: =SUM(K91:K$502) -> 0 | M90: 1
G91: 89 | J91: =SUM(I$2:I91) -> 1 | L91: =SUM(K92:K$502) -> 0 | M91: 1
G92: 90 | J92: =SUM(I$2:I92) -> 1 | L92: =SUM(K93:K$502) -> 0 | M92: 1
G93: 91 | J93: =SUM(I$2:I93) -> 1 | L93: =SUM(K94:K$502) -> 0 | M93: 1
G94: 92 | J94: =SUM(I$2:I94) -> 1 | L94: =SUM(K95:K$502) -> 0 | M94: 1
G95: 93 | J95: =SUM(I$2:I95) -> 1 | L95: =SUM(K96:K$502) -> 0 | M95: 1
G96: 94 | J96: =SUM(I$2:I96) -> 1 | L96: =SUM(K97:K$502) -> 0 | M96: 1
G97: 95 | J97: =SUM(I$2:I97) -> 1 | L97: =SUM(K98:K$502) -> 0 | M97: 1
G98: 96 | J98: =SUM(I$2:I98) -> 1 | L98: =SUM(K99:K$502) -> 0 | M98: 1
G99: 97 | J99: =SUM(I$2:I99) -> 1 | L99: =SUM(K100:K$502) -> 0 | M99: 1
G100: 98 | J100: =SUM(I$2:I100) -> 1 | L100: =SUM(K101:K$502) -> 0 | M100: 1
G101: 99 | J101: =SUM(I$2:I101) -> 1 | L101: =SUM(K102:K$502) -> 0 | M101: 1
G102: 100 | J102: =SUM(I$2:I102) -> 1 | L102: =SUM(K103:K$502) -> 0 | M102: 1
G103: 101 | J103: =SUM(I$2:I103) -> 1 | L103: =SUM(K104:K$502) -> 0 | M103: 1
G104: 102 | J104: =SUM(I$2:I104) -> 1 | L104: =SUM(K105:K$502) -> 0 | M104: 1
G105: 103 | J105: =SUM(I$2:I105) -> 1 | L105: =SUM(K106:K$502) -> 0 | M105: 1
G106: 104 | J106: =SUM(I$2:I106) -> 1 | L106: =SUM(K107:K$502) -> 0 | M106: 1
G107: 105 | J107: =SUM(I$2:I107) -> 1 | L107: =SUM(K108:K$502) -> 0 | M107: 1
G108: 106 | J108: =SUM(I$2:I108) -> 1 | L108: =SUM(K109:K$502) -> 0 | M108: 1
G109: 107 | J109: =SUM(I$2:I109) -> 1 | L109: =SUM(K110:K$502) -> 0 | M109: 1
G110: 108 | J110: =SUM(I$2:I110) -> 1 | L110: =SUM(K111:K$502) -> 0 | M110: 1
G111: 109 | J111: =SUM(I$2:I111) -> 1 | L111: =SUM(K112:K$502) -> 0 | M111: 1
G112: 110 | J112: =SUM(I$2:I112) -> 1 | L112: =SUM(K113:K$502) -> 0 | M112: 1
G113: 111 | J113: =SUM(I$2:I113) -> 1 | L113: =SUM(K114:K$502) -> 0 | M113: 1
G114: 112 | J114: =SUM(I$2:I114) -> 1 | L114: =SUM(K115:K$502) -> 0 | M114: 1
G115: 113 | J115: =SUM(I$2:I115) -> 1 | L115: =SUM(K116:K$502) -> 0 | M115: 1
G116: 114 | J116: =SUM(I$2:I116) -> 1 | L116: =SUM(K117:K$502) -> 0 | M116: 1
G117: 115 | J117: =SUM(I$2:I117) -> 1 | L117: =SUM(K118:K$502) -> 0 | M117: 1
G118: 116 | J118: =SUM(I$2:I118) -> 1 | L118: =SUM(K119:K$502) -> 0 | M118: 1
G119: 117 | J119: =SUM(I$2:I119) -> 1 | L119: =SUM(K120:K$502) -> 0 | M119: 1
G120: 118 | J120: =SUM(I$2:I120) -> 1 | L120: =SUM(K121:K$502) -> 0 | M120: 1
G121: 119 | J121: =SUM(I$2:I121) -> 1 | L121: =SUM(K122:K$502) -> 0 | M121: 1
G122: 120 | J122: =SUM(I$2:I122) -> 1 | L122: =SUM(K123:K$502) -> 0 | M122: 1
G123: 121 | J123: =SUM(I$2:I123) -> 1 | L123: =SUM(K124:K$502) -> 0 | M123: 1
G124: 122 | J124: =SUM(I$2:I124) -> 1 | L124: =SUM(K125:K$502) -> 0 | M124: 1
G125: 123 | J125: =SUM(I$2:I125) -> 1 | L125: =SUM(K126:K$502) -> 0 | M125: 1
G126: 124 | J126: =SUM(I$2:I126) -> 1 | L126: =SUM(K127:K$502) -> 0 | M126: 1
G127: 125 | J127: =SUM(I$2:I127) -> 1 | L127: =SUM(K128:K$502) -> 0 | M127: 1
G128: 126 | J128: =SUM(I$2:I128) -> 1 | L128: =SUM(K129:K$502) -> 0 | M128: 1
G129: 127 | J129: =SUM(I$2:I129) -> 1 | L129: =SUM(K130:K$502) -> 0 | M129: 1
G130: 128 | J130: =SUM(I$2:I130) -> 1 | K130: =IF(ISERROR(H130*(C$3)^G130*(1-C$3)^(A$3-G130))=TRUE,"",H130*(C$3)^G130*(1-C$3)^(A$3-G130)) ->  | L130: =SUM(K131:K$502) -> 0 | M130: 1
G131: 129 | H131: =IF(ISERROR(COMBIN(A$3,A$3-ROW()+2)),"",COMBIN(A$3,A$3-ROW()+2)) ->  | I131: =IF(ISERROR(H131*B$3^G131*(1-B$3)^(A$3-G131))=TRUE,"",H131*B$3^G131*(1-B$3)^(A$3-G131)) ->  | J131: =SUM(I$2:I131) -> 1 | L131: =SUM(K132:K$502) -> 0 | M131: =L131+J131 -> 1
G132: 130 | J132: =SUM(I$2:I132) -> 1 | L132: =SUM(K133:K$502) -> 0 | M132: 1
G133: 131 | J133: =SUM(I$2:I133) -> 1 | L133: =SUM(K134:K$502) -> 0 | M133: 1
G134: 132 | J134: =SUM(I$2:I134) -> 1 | L134: =SUM(K135:K$502) -> 0 | M134: 1
G135: 133 | J135: =SUM(I$2:I135) -> 1 | L135: =SUM(K136:K$502) -> 0 | M135: 1
G136: 134 | J136: =SUM(I$2:I136) -> 1 | L136: =SUM(K137:K$502) -> 0 | M136: 1
G137: 135 | J137: =SUM(I$2:I137) -> 1 | L137: =SUM(K138:K$502) -> 0 | M137: 1
G138: 136 | J138: =SUM(I$2:I138) -> 1 | L138: =SUM(K139:K$502) -> 0 | M138: 1
G139: 137 | J139: =SUM(I$2:I139) -> 1 | L139: =SUM(K140:K$502) -> 0 | M139: 1
G140: 138 | J140: =SUM(I$2:I140) -> 1 | L140: =SUM(K141:K$502) -> 0 | M140: 1
G141: 139 | J141: =SUM(I$2:I141) -> 1 | L141: =SUM(K142:K$502) -> 0 | M141: 1
G142: 140 | J142: =SUM(I$2:I142) -> 1 | L142: =SUM(K143:K$502) -> 0 | M142: 1
G143: 141 | J143: =SUM(I$2:I143) -> 1 | L143: =SUM(K144:K$502) -> 0 | M143: 1
G144: 142 | J144: =SUM(I$2:I144) -> 1 | L144: =SUM(K145:K$502) -> 0 | M144: 1
G145: 143 | J145: =SUM(I$2:I145) -> 1 | L145: =SUM(K146:K$502) -> 0 | M145: 1
G146: 144 | J146: =SUM(I$2:I146) -> 1 | L146: =SUM(K147:K$502) -> 0 | M146: 1
G147: 145 | J147: =SUM(I$2:I147) -> 1 | L147: =SUM(K148:K$502) -> 0 | M147: 1
G148: 146 | J148: =SUM(I$2:I148) -> 1 | L148: =SUM(K149:K$502) -> 0 | M148: 1
G149: 147 | J149: =SUM(I$2:I149) -> 1 | L149: =SUM(K150:K$502) -> 0 | M149: 1
G150: 148 | J150: =SUM(I$2:I150) -> 1 | L150: =SUM(K151:K$502) -> 0 | M150: 1
G151: 149 | J151: =SUM(I$2:I151) -> 1 | L151: =SUM(K152:K$502) -> 0 | M151: 1
G152: 150 | J152: =SUM(I$2:I152) -> 1 | L152: =SUM(K153:K$502) -> 0 | M152: 1
G153: 151 | J153: =SUM(I$2:I153) -> 1 | L153: =SUM(K154:K$502) -> 0 | M153: 1
G154: 152 | J154: =SUM(I$2:I154) -> 1 | L154: =SUM(K155:K$502) -> 0 | M154: 1
G155: 153 | J155: =SUM(I$2:I155) -> 1 | L155: =SUM(K156:K$502) -> 0 | M155: 1
G156: 154 | J156: =SUM(I$2:I156) -> 1 | L156: =SUM(K157:K$502) -> 0 | M156: 1
G157: 155 | J157: =SUM(I$2:I157) -> 1 | L157: =SUM(K158:K$502) -> 0 | M157: 1
G158: 156 | J158: =SUM(I$2:I158) -> 1 | L158: =SUM(K159:K$502) -> 0 | M158: 1
G159: 157 | J159: =SUM(I$2:I159) -> 1 | L159: =SUM(K160:K$502) -> 0 | M159: 1
G160: 158 | J160: =SUM(I$2:I160) -> 1 | L160: =SUM(K161:K$502) -> 0 | M160: 1
G161: 159 | J161: =SUM(I$2:I161) -> 1 | L161: =SUM(K162:K$502) -> 0 | M161: 1
G162: 160 | J162: =SUM(I$2:I162) -> 1 | L162: =SUM(K163:K$502) -> 0 | M162: 1
G163: 161 | J163: =SUM(I$2:I163) -> 1 | L163: =SUM(K164:K$502) -> 0 | M163: 1
G164: 162 | J164: =SUM(I$2:I164) -> 1 | L164: =SUM(K165:K$502) -> 0 | M164: 1
G165: 163 | J165: =SUM(I$2:I165) -> 1 | L165: =SUM(K166:K$502) -> 0 | M165: 1
G166: 164 | J166: =SUM(I$2:I166) -> 1 | L166: =SUM(K167:K$502) -> 0 | M166: 1
G167: 165 | J167: =SUM(I$2:I167) -> 1 | L167: =SUM(K168:K$502) -> 0 | M167: 1
G168: 166 | J168: =SUM(I$2:I168) -> 1 | L168: =SUM(K169:K$502) -> 0 | M168: 1
G169: 167 | J169: =SUM(I$2:I169) -> 1 | L169: =SUM(K170:K$502) -> 0 | M169: 1
G170: 168 | J170: =SUM(I$2:I170) -> 1 | L170: =SUM(K171:K$502) -> 0 | M170: 1
G171: 169 | J171: =SUM(I$2:I171) -> 1 | L171: =SUM(K172:K$502) -> 0 | M171: 1
G172: 170 | J172: =SUM(I$2:I172) -> 1 | L172: =SUM(K173:K$502) -> 0 | M172: 1
G173: 171 | J173: =SUM(I$2:I173) -> 1 | L173: =SUM(K174:K$502) -> 0 | M173: 1
G174: 172 | J174: =SUM(I$2:I174) -> 1 | L174: =SUM(K175:K$502) -> 0 | M174: 1
G175: 173 | J175: =SUM(I$2:I175) -> 1 | L175: =SUM(K176:K$502) -> 0 | M175: 1
G176: 174 | J176: =SUM(I$2:I176) -> 1 | L176: =SUM(K177:K$502) -> 0 | M176: 1
G177: 175 | J177: =SUM(I$2:I177) -> 1 | L177: =SUM(K178:K$502) -> 0 | M177: 1
G178: 176 | J178: =SUM(I$2:I178) -> 1 | L178: =SUM(K179:K$502) -> 0 | M178: 1
G179: 177 | J179: =SUM(I$2:I179) -> 1 | L179: =SUM(K180:K$502) -> 0 | M179: 1
G180: 178 | J180: =SUM(I$2:I180) -> 1 | L180: =SUM(K181:K$502) -> 0 | M180: 1
G181: 179 | J181: =SUM(I$2:I181) -> 1 | L181: =SUM(K182:K$502) -> 0 | M181: 1
G182: 180 | J182: =SUM(I$2:I182) -> 1 | L182: =SUM(K183:K$502) -> 0 | M182: 1
G183: 181 | J183: =SUM(I$2:I183) -> 1 | L183: =SUM(K184:K$502) -> 0 | M183: 1
G184: 182 | J184: =SUM(I$2:I184) -> 1 | L184: =SUM(K185:K$502) -> 0 | M184: 1
G185: 183 | J185: =SUM(I$2:I185) -> 1 | L185: =SUM(K186:K$502) -> 0 | M185: 1
G186: 184 | J186: =SUM(I$2:I186) -> 1 | L186: =SUM(K187:K$502) -> 0 | M186: 1
G187: 185 | J187: =SUM(I$2:I187) -> 1 | L187: =SUM(K188:K$502) -> 0 | M187: 1
G188: 186 | J188: =SUM(I$2:I188) -> 1 | L188: =SUM(K189:K$502) -> 0 | M188: 1
G189: 187 | J189: =SUM(I$2:I189) -> 1 | L189: =SUM(K190:K$502) -> 0 | M189: 1
G190: 188 | J190: =SUM(I$2:I190) -> 1 | L190: =SUM(K191:K$502) -> 0 | M190: 1
G191: 189 | J191: =SUM(I$2:I191) -> 1 | L191: =SUM(K192:K$502) -> 0 | M191: 1
G192: 190 | J192: =SUM(I$2:I192) -> 1 | L192: =SUM(K193:K$502) -> 0 | M192: 1
G193: 191 | J193: =SUM(I$2:I193) -> 1 | L193: =SUM(K194:K$502) -> 0 | M193: 1
G194: 192 | J194: =SUM(I$2:I194) -> 1 | K194: =IF(ISERROR(H194*(C$3)^G194*(1-C$3)^(A$3-G194))=TRUE,"",H194*(C$3)^G194*(1-C$3)^(A$3-G194)) ->  | L194: =SUM(K195:K$502) -> 0 | M194: 1
G195: 193 | H195: =IF(ISERROR(COMBIN(A$3,A$3-ROW()+2)),"",COMBIN(A$3,A$3-ROW()+2)) ->  | I195: =IF(ISERROR(H195*B$3^G195*(1-B$3)^(A$3-G195))=TRUE,"",H195*B$3^G195*(1-B$3)^(A$3-G195)) ->  | J195: =SUM(I$2:I195) -> 1 | L195: =SUM(K196:K$502) -> 0 | M195: =L195+J195 -> 1
G196: 194 | J196: =SUM(I$2:I196) -> 1 | L196: =SUM(K197:K$502) -> 0 | M196: 1
G197: 195 | J197: =SUM(I$2:I197) -> 1 | L197: =SUM(K198:K$502) -> 0 | M197: 1
G198: 196 | J198: =SUM(I$2:I198) -> 1 | L198: =SUM(K199:K$502) -> 0 | M198: 1
G199: 197 | J199: =SUM(I$2:I199) -> 1 | L199: =SUM(K200:K$502) -> 0 | M199: 1
G200: 198 | J200: =SUM(I$2:I200) -> 1 | L200: =SUM(K201:K$502) -> 0 | M200: 1
... 302 more rows

Sheet SummarySheet
A1: Test the hypothesis that true putting percentage is | B1: =Sheet1!B3 -> 95%
A2: Test Procedure: Attempt | B2: =Sheet1!A3 -> 50 | C2: putts
A3: Reject the hypothesis if you make | B3: =Sheet1!D3 -> 45 | C3: or fewer putts
A4: The probability of erroneously rejecting the hypothesis using this testing procedure is | B4: =Sheet1!F3 -> 10.4%
A5: The probability of erroneously accepting the hypothesis using this testing procedure is | B5: =Sheet1!E3 -> 11.2% | C5: if your true putting percentage is | D5: =Sheet1!C3 -> 85.0%
